[Event "Titled Tuesday Blitz November 07 Early 2023"]
[White "Su, Dion"]
[Black "Hasangatin, Ramil"]
[WhiteFideId "2029731"]
[BlackFideId "4122160"]
[WhiteElo "2400"]
[BlackElo "2712"]
[Result "1-0"]
[Round "1"]
[TimeControl "180+1"]
[Date "2023.11.07"]
[WhiteClock "0:01:09"]
[BlackClock "0:00:30"]
[Board "114"]

1. e4 {[%clk 0:03:00]}  d5 {[%clk 0:02:59]} 2. exd5 {[%clk 0:03:01]}  Qxd5 {[%clk 0:03:00]} 3. Nc3 {[%clk 0:03:01]}  Qd6 {[%clk 0:03:00]} 4. Bc4 {[%clk 0:03:01]}  Nf6 {[%clk 0:03:01]} 5. Nf3 {[%clk 0:03:01]}  c6 {[%clk 0:03:01]} 6. h3 {[%clk 0:03:02]}  Bf5 {[%clk 0:03:01]} 7. d4 {[%clk 0:03:02]}  e6 {[%clk 0:03:01]} 8. O-O {[%clk 0:03:02]}  Nbd7 {[%clk 0:03:02]} 9. Bg5 {[%clk 0:03:03]}  Be7 {[%clk 0:03:01]} 10. Qe2 {[%clk 0:03:03]}  Nb6 {[%clk 0:03:01]} 11. Bb3 {[%clk 0:03:04]}  O-O {[%clk 0:03:01]} 12. Rad1 {[%clk 0:03:03]}  Nbd5 {[%clk 0:03:01]} 13. Rfe1 {[%clk 0:03:00]}  Rad8 {[%clk 0:03:01]} 14. Ne5 {[%clk 0:02:59]}  Qc7 {[%clk 0:02:55]} 15. Bh4 {[%clk 0:02:50]}  Nxc3 {[%clk 0:02:55]} 16. bxc3 {[%clk 0:02:50]}  Ne4 {[%clk 0:02:55]} 17. Bxe7 {[%clk 0:02:48]}  Qxe7 {[%clk 0:02:53]} 18. Qf3 {[%clk 0:02:45]}  Nd6 {[%clk 0:02:45]} 19. g4 {[%clk 0:02:40]}  Bg6 {[%clk 0:02:44]} 20. c4 {[%clk 0:02:37]}  Qf6 {[%clk 0:02:42]} 21. c5 {[%clk 0:02:31]}  Nb5 {[%clk 0:02:36]} 22. Qe3 {[%clk 0:02:21]}  h6 {[%clk 0:02:25]} 23. c3 {[%clk 0:02:21]}  Bh7 {[%clk 0:02:25]} 24. Nc4 {[%clk 0:02:19]}  Rfe8 {[%clk 0:02:19]} 25. a4 {[%clk 0:02:19]}  Nc7 {[%clk 0:02:19]} 26. Nd6 {[%clk 0:02:20]}  Re7 {[%clk 0:02:18]} 27. Nxb7 {[%clk 0:02:20]}  Nd5 {[%clk 0:02:17]} 28. Bxd5 {[%clk 0:02:19]}  Rxd5 {[%clk 0:02:18]} 29. Nd6 {[%clk 0:02:18]}  e5 {[%clk 0:02:18]} 30. c4 {[%clk 0:02:13]}  Rxd6 {[%clk 0:02:03]} 31. cxd6 {[%clk 0:02:13]}  Qxd6 {[%clk 0:02:03]} 32. dxe5 {[%clk 0:02:10]}  Qc7 {[%clk 0:02:04]} 33. f4 {[%clk 0:02:09]}  Bc2 {[%clk 0:02:02]} 34. Rd6 {[%clk 0:02:07]}  Bxa4 {[%clk 0:02:02]} 35. Qc5 {[%clk 0:02:08]}  Qb7 {[%clk 0:01:56]} 36. Ra1 {[%clk 0:01:54]}  Bc2 {[%clk 0:01:54]} 37. Re1 {[%clk 0:01:41]}  Kh7 {[%clk 0:01:17]} 38. Rxc6 {[%clk 0:01:39]}  a5 {[%clk 0:01:03]} 39. Rb6 {[%clk 0:01:38]}  Qd7 {[%clk 0:00:58]} 40. Qd6 {[%clk 0:01:32]}  Qa7 {[%clk 0:00:56]} 41. c5 {[%clk 0:01:26]}  Rd7 {[%clk 0:00:56]} 42. Qf8 {[%clk 0:01:20]}  Rd3 {[%clk 0:00:49]} 43. Rb8 {[%clk 0:01:14]}  Qd7 {[%clk 0:00:35]} 44. Qg8+ {[%clk 0:01:09]}  Kg6 {[%clk 0:00:32]} 45. Rb6+ {[%clk 0:01:10]}  f6 {[%clk 0:00:30]} 46. Rxf6# {[%clk 0:01:09]} 1-0


[Site "https://www.chess.com"]

[Event "Titled Tuesday Blitz November 07 Early 2023"]
[White "Atakhan, Abtin"]
[Black "Muhammad Shahzeb"]
[WhiteFideId "22502203"]
[BlackFideId "7804806"]
[WhiteElo "2711"]
[BlackElo "2400"]
[Result "1/2-1/2"]
[Round "1"]
[TimeControl "180+1"]
[Date "2023.11.07"]
[WhiteClock "0:00:31"]
[BlackClock "0:00:09"]
[Board "115"]

1. Nf3 {[%clk 0:03:00]}  c5 {[%clk 0:02:57]} 2. c4 {[%clk 0:03:01]}  g6 {[%clk 0:02:57]} 3. d4 {[%clk 0:02:58]}  cxd4 {[%clk 0:02:56]} 4. Nxd4 {[%clk 0:02:59]}  Bg7 {[%clk 0:02:56]} 5. e4 {[%clk 0:02:59]}  Nc6 {[%clk 0:02:53]} 6. Be3 {[%clk 0:03:00]}  Nf6 {[%clk 0:02:51]} 7. Nc3 {[%clk 0:03:00]}  O-O {[%clk 0:02:50]} 8. Be2 {[%clk 0:02:59]}  d6 {[%clk 0:02:50]} 9. O-O {[%clk 0:03:00]}  Be6 {[%clk 0:02:41]} 10. Nxe6 {[%clk 0:02:57]}  fxe6 {[%clk 0:02:40]} 11. Rc1 {[%clk 0:02:52]}  Rc8 {[%clk 0:02:39]} 12. a3 {[%clk 0:02:47]}  Ne5 {[%clk 0:02:30]} 13. b3 {[%clk 0:02:39]}  a6 {[%clk 0:02:28]} 14. f4 {[%clk 0:02:38]}  Ned7 {[%clk 0:02:23]} 15. b4 {[%clk 0:02:31]}  Bh6 {[%clk 0:01:38]} 16. Qb3 {[%clk 0:02:13]}  Kh8 {[%clk 0:01:19]} 17. Rcd1 {[%clk 0:02:09]}  e5 {[%clk 0:01:18]} 18. g3 {[%clk 0:02:04]}  exf4 {[%clk 0:01:15]} 19. gxf4 {[%clk 0:02:05]}  Nh5 {[%clk 0:01:06]} 20. Bxh5 {[%clk 0:02:05]}  gxh5 {[%clk 0:01:06]} 21. Nd5 {[%clk 0:02:02]}  e6 {[%clk 0:00:57]} 22. Bd4+ {[%clk 0:01:56]}  Bg7 {[%clk 0:00:48]} 23. Bxg7+ {[%clk 0:01:46]}  Kxg7 {[%clk 0:00:47]} 24. Ne3 {[%clk 0:01:47]}  Qe7 {[%clk 0:00:25]} 25. Qd3 {[%clk 0:01:45]}  Nf6 {[%clk 0:00:22]} 26. e5 {[%clk 0:01:41]}  dxe5 {[%clk 0:00:20]} 27. fxe5 {[%clk 0:01:41]}  Ng4 {[%clk 0:00:19]} 28. Nxg4 {[%clk 0:01:40]}  hxg4 {[%clk 0:00:17]} 29. Qd7 {[%clk 0:01:34]}  Rxf1+ {[%clk 0:00:15]} 30. Kxf1 {[%clk 0:01:35]}  Rc7 {[%clk 0:00:13]} 31. Qxe7+ {[%clk 0:01:33]}  Rxe7 {[%clk 0:00:13]} 32. Kf2 {[%clk 0:01:25]}  Kg6 {[%clk 0:00:13]} 33. Kg3 {[%clk 0:01:22]}  Kf5 {[%clk 0:00:12]} 34. Rd8 {[%clk 0:01:06]}  Rg7 {[%clk 0:00:06]} 35. c5 {[%clk 0:00:56]}  Kxe5 {[%clk 0:00:06]} 36. a4 {[%clk 0:00:56]}  h5 {[%clk 0:00:04]} 37. Kh4 {[%clk 0:00:51]}  Ke4 {[%clk 0:00:04]} 38. Kxh5 {[%clk 0:00:50]}  e5 {[%clk 0:00:05]} 39. b5 {[%clk 0:00:48]}  axb5 {[%clk 0:00:04]} 40. axb5 {[%clk 0:00:49]}  Rc7 {[%clk 0:00:04]} 41. c6 {[%clk 0:00:37]}  bxc6 {[%clk 0:00:04]} 42. bxc6 {[%clk 0:00:38]}  Rxc6 {[%clk 0:00:05]} 43. Kxg4 {[%clk 0:00:39]}  Ke3 {[%clk 0:00:05]} 44. h4 {[%clk 0:00:37]}  e4 {[%clk 0:00:06]} 45. h5 {[%clk 0:00:37]}  Ke2 {[%clk 0:00:05]} 46. Re8 {[%clk 0:00:34]}  e3 {[%clk 0:00:05]} 47. Kf4 {[%clk 0:00:34]}  Rc4+ {[%clk 0:00:06]} 48. Kg5 {[%clk 0:00:34]}  Rc5+ {[%clk 0:00:06]} 49. Kg6 {[%clk 0:00:34]}  Rc6+ {[%clk 0:00:06]} 50. Kf7 {[%clk 0:00:33]}  Kf2 {[%clk 0:00:07]} 51. Kg7 {[%clk 0:00:31]}  e2 {[%clk 0:00:07]} 52. h6 {[%clk 0:00:31]}  Rxh6 {[%clk 0:00:07]} 53. Kxh6 {[%clk 0:00:30]}  e1=Q {[%clk 0:00:08]} 54. Rxe1 {[%clk 0:00:31]}  Kxe1 {[%clk 0:00:09]} 1/2-1/2


[Site "https://www.chess.com"]

[Event "Titled Tuesday Blitz November 07 Early 2023"]
[White "Kukreja Sankalp"]
[Black "Starozhilov, Leonid"]
[WhiteFideId "45027676"]
[BlackFideId "14106752"]
[WhiteElo "2395"]
[BlackElo "2708"]
[Result "1-0"]
[Round "1"]
[TimeControl "180+1"]
[Date "2023.11.07"]
[WhiteClock "0:01:10"]
[BlackClock "0:00:48"]
[Board "118"]

1. e4 {[%clk 0:02:50]}  g6 {[%clk 0:02:58]} 2. d4 {[%clk 0:02:49]}  Bg7 {[%clk 0:02:58]} 3. Nf3 {[%clk 0:02:50]}  d6 {[%clk 0:02:59]} 4. Bc4 {[%clk 0:02:50]}  Nf6 {[%clk 0:02:59]} 5. Qe2 {[%clk 0:02:49]}  Nc6 {[%clk 0:03:00]} 6. O-O {[%clk 0:02:47]}  e5 {[%clk 0:02:54]} 7. Rd1 {[%clk 0:02:44]}  Bg4 {[%clk 0:02:47]} 8. c3 {[%clk 0:02:30]}  O-O {[%clk 0:02:42]} 9. h3 {[%clk 0:02:29]}  Bxf3 {[%clk 0:02:42]} 10. Qxf3 {[%clk 0:02:30]}  Nd7 {[%clk 0:02:33]} 11. Be3 {[%clk 0:02:25]}  Nb6 {[%clk 0:02:33]} 12. Bb3 {[%clk 0:02:19]}  Na5 {[%clk 0:02:32]} 13. Nd2 {[%clk 0:02:15]}  Nxb3 {[%clk 0:02:29]} 14. axb3 {[%clk 0:02:16]}  Qe7 {[%clk 0:02:23]} 15. Nc4 {[%clk 0:02:15]}  Nxc4 {[%clk 0:02:15]} 16. bxc4 {[%clk 0:02:16]}  a6 {[%clk 0:02:16]} 17. Re1 {[%clk 0:02:13]}  Rfe8 {[%clk 0:02:15]} 18. Rad1 {[%clk 0:02:12]}  b6 {[%clk 0:02:09]} 19. Qg4 {[%clk 0:02:02]}  h5 {[%clk 0:02:06]} 20. Qg3 {[%clk 0:02:02]}  exd4 {[%clk 0:02:02]} 21. Bxd4 {[%clk 0:01:52]}  a5 {[%clk 0:02:00]} 22. f4 {[%clk 0:01:46]}  Bxd4+ {[%clk 0:01:42]} 23. cxd4 {[%clk 0:01:47]}  Kg7 {[%clk 0:01:36]} 24. f5 {[%clk 0:01:47]}  c5 {[%clk 0:01:31]} 25. e5 {[%clk 0:01:46]}  dxe5 {[%clk 0:01:22]} 26. dxe5 {[%clk 0:01:47]}  Kh7 {[%clk 0:01:21]} 27. e6 {[%clk 0:01:39]}  Rg8 {[%clk 0:01:21]} 28. Rd7 {[%clk 0:01:38]}  Qe8 {[%clk 0:01:09]} 29. Rxf7+ {[%clk 0:01:35]}  Kh6 {[%clk 0:01:08]} 30. h4 {[%clk 0:01:22]}  g5 {[%clk 0:00:57]} 31. Qe5 {[%clk 0:01:16]}  Qd8 {[%clk 0:00:52]} 32. e7 {[%clk 0:01:11]}  Qd4+ {[%clk 0:00:50]} 33. Qxd4 {[%clk 0:01:10]}  cxd4 {[%clk 0:00:48]} 34. Re6+ {[%clk 0:01:10]} 1-0


[Site "https://www.chess.com"]

[Event "Titled Tuesday Blitz November 07 Early 2023"]
[White "Slovineanu, Viacheslav"]
[Black "NovozhilovSemen"]
[WhiteFideId "13900510"]
[WhiteElo "2392"]
[BlackElo "2706"]
[Result "0-1"]
[Round "1"]
[TimeControl "180+1"]
[Date "2023.11.07"]
[WhiteClock "0:00:00"]
[BlackClock "0:00:15"]
[Board "120"]

1. d4 {[%clk 0:03:00]}  Nf6 {[%clk 0:02:59]} 2. Nf3 {[%clk 0:03:00]}  e6 {[%clk 0:02:57]} 3. c4 {[%clk 0:02:59]}  c5 {[%clk 0:02:55]} 4. d5 {[%clk 0:02:59]}  exd5 {[%clk 0:02:55]} 5. cxd5 {[%clk 0:03:00]}  d6 {[%clk 0:02:56]} 6. e4 {[%clk 0:02:56]}  g6 {[%clk 0:02:55]} 7. Bd3 {[%clk 0:02:55]}  Bg7 {[%clk 0:02:56]} 8. O-O {[%clk 0:02:53]}  Bg4 {[%clk 0:02:55]} 9. h3 {[%clk 0:02:48]}  Bxf3 {[%clk 0:02:54]} 10. Qxf3 {[%clk 0:02:48]}  O-O {[%clk 0:02:55]} 11. Bf4 {[%clk 0:02:46]}  Ne8 {[%clk 0:02:52]} 12. Nd2 {[%clk 0:02:43]}  Nd7 {[%clk 0:02:51]} 13. Nc4 {[%clk 0:02:35]}  Ne5 {[%clk 0:02:47]} 14. Bxe5 {[%clk 0:02:32]}  dxe5 {[%clk 0:02:48]} 15. a4 {[%clk 0:02:26]}  Nd6 {[%clk 0:02:39]} 16. Rac1 {[%clk 0:01:45]}  a6 {[%clk 0:02:18]} 17. Qe3 {[%clk 0:01:36]}  b6 {[%clk 0:02:09]} 18. a5 {[%clk 0:01:18]}  Nxc4 {[%clk 0:01:58]} 19. Rxc4 {[%clk 0:01:17]}  b5 {[%clk 0:01:58]} 20. Rxc5 {[%clk 0:01:13]}  Qxa5 {[%clk 0:01:59]} 21. Rfc1 {[%clk 0:01:09]}  Qb4 {[%clk 0:01:48]} 22. R1c2 {[%clk 0:01:01]}  f5 {[%clk 0:01:47]} 23. Qd2 {[%clk 0:00:59]}  Qd4 {[%clk 0:01:42]} 24. Qc3 {[%clk 0:00:43]}  fxe4 {[%clk 0:01:08]} 25. Qxd4 {[%clk 0:00:42]}  exd4 {[%clk 0:01:08]} 26. Bxe4 {[%clk 0:00:43]}  Rae8 {[%clk 0:01:09]} 27. f3 {[%clk 0:00:39]}  d3 {[%clk 0:01:08]} 28. Bxd3 {[%clk 0:00:31]}  Bd4+ {[%clk 0:01:08]} 29. Kf1 {[%clk 0:00:32]}  Bxc5 {[%clk 0:01:07]} 30. Rxc5 {[%clk 0:00:32]}  Rc8 {[%clk 0:00:59]} 31. b4 {[%clk 0:00:32]}  Rfd8 {[%clk 0:00:53]} 32. Be4 {[%clk 0:00:28]}  Kf7 {[%clk 0:00:53]} 33. Ke2 {[%clk 0:00:26]}  Rxc5 {[%clk 0:00:39]} 34. bxc5 {[%clk 0:00:26]}  Rc8 {[%clk 0:00:40]} 35. c6 {[%clk 0:00:20]}  Ke7 {[%clk 0:00:40]} 36. Kd3 {[%clk 0:00:18]}  Kd6 {[%clk 0:00:40]} 37. Kc3 {[%clk 0:00:11]}  a5 {[%clk 0:00:40]} 38. h4 {[%clk 0:00:11]}  Rf8 {[%clk 0:00:17]} 39. Kb3 {[%clk 0:00:06]}  Rf4 {[%clk 0:00:15]} 40. g4 {[%clk 0:00:00]}  Rf8 {[%clk 0:00:15]} 0-1


[Site "https://www.chess.com"]

[Event "Titled Tuesday Blitz November 07 Early 2023"]
[White "Harikrishnan.A.Ra"]
[Black "Goldin, Roman"]
[WhiteFideId "5081483"]
[BlackFideId "2803860"]
[WhiteElo "2706"]
[BlackElo "2391"]
[Result "0-1"]
[Round "1"]
[TimeControl "180+1"]
[Date "2023.11.07"]
[WhiteClock "0:00:05"]
[BlackClock "0:00:04"]
[Board "121"]

1. d4 {[%clk 0:02:58]}  Nf6 {[%clk 0:02:59]} 2. Nf3 {[%clk 0:02:59]}  b5 {[%clk 0:02:58]} 3. e3 {[%clk 0:02:54]}  a6 {[%clk 0:02:58]} 4. c4 {[%clk 0:02:55]}  b4 {[%clk 0:02:56]} 5. Bd3 {[%clk 0:02:53]}  Bb7 {[%clk 0:02:56]} 6. O-O {[%clk 0:02:53]}  e6 {[%clk 0:02:56]} 7. Qe2 {[%clk 0:02:53]}  c5 {[%clk 0:02:56]} 8. d5 {[%clk 0:02:50]}  exd5 {[%clk 0:02:48]} 9. cxd5 {[%clk 0:02:51]}  Bxd5 {[%clk 0:02:25]} 10. e4 {[%clk 0:02:51]}  Be6 {[%clk 0:02:25]} 11. e5 {[%clk 0:02:42]}  Nd5 {[%clk 0:02:24]} 12. Ng5 {[%clk 0:02:42]}  Nc6 {[%clk 0:02:20]} 13. f4 {[%clk 0:02:30]}  Be7 {[%clk 0:02:16]} 14. Nxh7 {[%clk 0:02:00]}  Nd4 {[%clk 0:02:05]} 15. Qf2 {[%clk 0:01:54]}  Bf5 {[%clk 0:01:39]} 16. Bxf5 {[%clk 0:01:45]}  Nxf5 {[%clk 0:01:39]} 17. Ng5 {[%clk 0:01:46]}  c4 {[%clk 0:01:03]} 18. Nd2 {[%clk 0:01:26]}  Nde3 {[%clk 0:00:42]} 19. Nde4 {[%clk 0:01:23]}  Nxf1 {[%clk 0:00:35]} 20. Qxf1 {[%clk 0:01:22]}  Qb6+ {[%clk 0:00:33]} 21. Qf2 {[%clk 0:01:17]}  Qxf2+ {[%clk 0:00:30]} 22. Kxf2 {[%clk 0:01:18]}  f6 {[%clk 0:00:22]} 23. Nf3 {[%clk 0:01:12]}  d5 {[%clk 0:00:18]} 24. exd6 {[%clk 0:01:04]}  Nxd6 {[%clk 0:00:19]} 25. Nxd6+ {[%clk 0:00:55]}  Bxd6 {[%clk 0:00:18]} 26. Be3 {[%clk 0:00:56]}  Rc8 {[%clk 0:00:17]} 27. h3 {[%clk 0:00:39]}  Bc5 {[%clk 0:00:16]} 28. Bxc5 {[%clk 0:00:36]}  Rxc5 {[%clk 0:00:16]} 29. Nd4 {[%clk 0:00:36]}  Kf7 {[%clk 0:00:15]} 30. Rc1 {[%clk 0:00:34]}  Rd8 {[%clk 0:00:15]} 31. Ke3 {[%clk 0:00:34]}  Re8+ {[%clk 0:00:11]} 32. Kf3 {[%clk 0:00:32]}  a5 {[%clk 0:00:11]} 33. g4 {[%clk 0:00:28]}  a4 {[%clk 0:00:10]} 34. a3 {[%clk 0:00:29]}  c3 {[%clk 0:00:06]} 35. Rb1 {[%clk 0:00:14]}  cxb2 {[%clk 0:00:05]} 36. Rxb2 {[%clk 0:00:10]}  Rc3+ {[%clk 0:00:05]} 37. Kf2 {[%clk 0:00:09]}  bxa3 {[%clk 0:00:05]} 38. Rb4 {[%clk 0:00:06]}  Ra8 {[%clk 0:00:03]} 39. Rb7+ {[%clk 0:00:05]}  Kg8 {[%clk 0:00:02]} 40. Nf5 {[%clk 0:00:05]}  a2 {[%clk 0:00:02]} 41. Rxg7+ {[%clk 0:00:05]}  Kh8 {[%clk 0:00:02]} 42. Rg6 {[%clk 0:00:03]}  a1=Q {[%clk 0:00:02]} 43. Rh6+ {[%clk 0:00:03]}  Kg8 {[%clk 0:00:03]} 44. Rg6+ {[%clk 0:00:04]}  Kf8 {[%clk 0:00:03]} 45. Rg7 {[%clk 0:00:04]}  Qb2+ {[%clk 0:00:03]} 46. Kf1 {[%clk 0:00:05]}  Rc1# {[%clk 0:00:04]} 0-1


[Site "https://www.chess.com"]

[Event "Titled Tuesday Blitz November 07 Early 2023"]
[White "Juicy_Fork"]
[Black "GaiozNigalidze"]
[WhiteElo "2389"]
[BlackElo "2705"]
[Result "0-1"]
[Round "1"]
[TimeControl "180+1"]
[Date "2023.11.07"]
[WhiteClock "0:00:00"]
[BlackClock "0:01:18"]
[Board "122"]

1. e4 {[%clk 0:03:00]}  c5 {[%clk 0:02:59]} 2. Nf3 {[%clk 0:02:57]}  d6 {[%clk 0:02:59]} 3. d4 {[%clk 0:02:56]}  cxd4 {[%clk 0:03:00]} 4. Nxd4 {[%clk 0:02:55]}  Nf6 {[%clk 0:03:01]} 5. Nc3 {[%clk 0:02:55]}  a6 {[%clk 0:03:01]} 6. Bd3 {[%clk 0:02:53]}  e5 {[%clk 0:03:01]} 7. Nde2 {[%clk 0:02:52]}  Be6 {[%clk 0:03:01]} 8. O-O {[%clk 0:02:52]}  Nbd7 {[%clk 0:03:01]} 9. f4 {[%clk 0:02:50]}  exf4 {[%clk 0:03:01]} 10. Nxf4 {[%clk 0:02:50]}  Ne5 {[%clk 0:03:02]} 11. h3 {[%clk 0:02:49]}  Be7 {[%clk 0:03:02]} 12. Be3 {[%clk 0:02:49]}  O-O {[%clk 0:03:00]} 13. Qe2 {[%clk 0:02:49]}  b5 {[%clk 0:03:00]} 14. a3 {[%clk 0:02:48]}  Rc8 {[%clk 0:03:00]} 15. Bd4 {[%clk 0:02:47]}  Re8 {[%clk 0:02:59]} 16. Ncd5 {[%clk 0:02:44]}  Bxd5 {[%clk 0:02:57]} 17. Nxd5 {[%clk 0:02:34]}  Nxd5 {[%clk 0:02:57]} 18. exd5 {[%clk 0:02:32]}  g6 {[%clk 0:02:40]} 19. Kh1 {[%clk 0:02:27]}  Bg5 {[%clk 0:02:35]} 20. Qf2 {[%clk 0:02:22]}  f5 {[%clk 0:02:30]} 21. Bxf5 {[%clk 0:01:45]}  gxf5 {[%clk 0:02:31]} 22. Qxf5 {[%clk 0:01:45]}  Bh6 {[%clk 0:02:20]} 23. Rae1 {[%clk 0:01:17]}  Bg7 {[%clk 0:02:18]} 24. Re3 {[%clk 0:01:15]}  Qd7 {[%clk 0:02:04]} 25. Qg5 {[%clk 0:00:56]}  Kh8 {[%clk 0:01:59]} 26. c3 {[%clk 0:00:41]}  Rf8 {[%clk 0:01:56]} 27. Rfe1 {[%clk 0:00:38]}  Rce8 {[%clk 0:01:55]} 28. h4 {[%clk 0:00:18]}  Rf5 {[%clk 0:01:53]} 29. Qg3 {[%clk 0:00:17]}  Qf7 {[%clk 0:01:54]} 30. Kg1 {[%clk 0:00:14]}  h5 {[%clk 0:01:52]} 31. Re4 {[%clk 0:00:13]}  Rf8 {[%clk 0:01:50]} 32. Bxe5 {[%clk 0:00:08]}  Bxe5 {[%clk 0:01:30]} 33. Qd3 {[%clk 0:00:08]}  Qg6 {[%clk 0:01:25]} 34. R4e3 {[%clk 0:00:07]}  Rg8 {[%clk 0:01:23]} 35. Qe2 {[%clk 0:00:05]}  Rf4 {[%clk 0:01:21]} 36. Rh3 {[%clk 0:00:02]}  Rg4 {[%clk 0:01:20]} 37. g3 {[%clk 0:00:02]}  Bxg3 {[%clk 0:01:18]} 38. Kh1 {[%clk 0:00:00]}  Bxe1 {[%clk 0:01:18]} 0-1


[Site "https://www.chess.com"]

[Event "Titled Tuesday Blitz November 07 Early 2023"]
[White "Osinovsky, Stepan"]
[Black "CuteSheepCloud"]
[WhiteFideId "4157354"]
[WhiteElo "2388"]
[BlackElo "2703"]
[Result "1-0"]
[Round "1"]
[TimeControl "180+1"]
[Date "2023.11.07"]
[WhiteClock "0:00:40"]
[BlackClock "0:01:42"]
[Board "124"]

1. e4 {[%clk 0:02:58]}  e5 {[%clk 0:02:59]} 2. Nf3 {[%clk 0:02:57]}  Nc6 {[%clk 0:02:59]} 3. Bb5 {[%clk 0:02:57]}  Nf6 {[%clk 0:02:59]} 4. d3 {[%clk 0:02:56]}  d6 {[%clk 0:02:58]} 5. Nbd2 {[%clk 0:02:55]}  a6 {[%clk 0:02:58]} 6. Ba4 {[%clk 0:02:54]}  b5 {[%clk 0:02:58]} 7. Bb3 {[%clk 0:02:55]}  Na5 {[%clk 0:02:59]} 8. Nf1 {[%clk 0:02:48]}  Nxb3 {[%clk 0:02:58]} 9. axb3 {[%clk 0:02:49]}  Bb7 {[%clk 0:02:59]} 10. Ng3 {[%clk 0:02:37]}  g6 {[%clk 0:02:55]} 11. h4 {[%clk 0:02:37]}  h6 {[%clk 0:02:48]} 12. h5 {[%clk 0:02:35]}  g5 {[%clk 0:02:47]} 13. Nh2 {[%clk 0:02:28]}  Qd7 {[%clk 0:02:44]} 14. Qe2 {[%clk 0:02:22]}  O-O-O {[%clk 0:02:42]} 15. Nhf1 {[%clk 0:02:18]}  Kb8 {[%clk 0:02:40]} 16. c4 {[%clk 0:02:14]}  Be7 {[%clk 0:02:36]} 17. Ne3 {[%clk 0:02:12]}  c6 {[%clk 0:02:34]} 18. Bd2 {[%clk 0:02:05]}  Rhe8 {[%clk 0:02:29]} 19. Ba5 {[%clk 0:02:03]}  Rc8 {[%clk 0:02:29]} 20. Ngf5 {[%clk 0:02:04]}  Bf8 {[%clk 0:02:28]} 21. f3 {[%clk 0:01:49]}  d5 {[%clk 0:02:28]} 22. g4 {[%clk 0:01:40]}  d4 {[%clk 0:02:26]} 23. Nc2 {[%clk 0:01:33]}  c5 {[%clk 0:02:24]} 24. Kf2 {[%clk 0:01:17]}  b4 {[%clk 0:02:23]} 25. Ra2 {[%clk 0:01:15]}  Qc6 {[%clk 0:02:21]} 26. Rha1 {[%clk 0:01:14]}  Re6 {[%clk 0:02:19]} 27. Kg2 {[%clk 0:01:12]}  Ne8 {[%clk 0:02:19]} 28. Qd1 {[%clk 0:01:10]}  Ng7 {[%clk 0:02:18]} 29. Nxg7 {[%clk 0:01:06]}  Bxg7 {[%clk 0:02:18]} 30. Kg3 {[%clk 0:01:02]}  Rf6 {[%clk 0:02:16]} 31. Bxb4 {[%clk 0:01:00]}  cxb4 {[%clk 0:02:16]} 32. Nxb4 {[%clk 0:01:01]}  Qc5 {[%clk 0:02:06]} 33. Nxa6+ {[%clk 0:00:53]}  Rxa6 {[%clk 0:02:01]} 34. Rxa6 {[%clk 0:00:54]}  Bxa6 {[%clk 0:02:02]} 35. Rxa6 {[%clk 0:00:55]}  Rc6 {[%clk 0:02:01]} 36. Ra4 {[%clk 0:00:49]}  Rb6 {[%clk 0:02:00]} 37. Qa1 {[%clk 0:00:46]}  Qc6 {[%clk 0:02:00]} 38. b4 {[%clk 0:00:46]}  Bf8 {[%clk 0:01:57]} 39. b5 {[%clk 0:00:44]}  Qb7 {[%clk 0:01:57]} 40. b4 {[%clk 0:00:43]}  Be7 {[%clk 0:01:48]} 41. Qa3 {[%clk 0:00:42]}  Bd8 {[%clk 0:01:43]} 42. Kf2 {[%clk 0:00:41]}  Be7 {[%clk 0:01:42]} 43. Ke2 {[%clk 0:00:41]}  Qc7 {[%clk 0:01:42]} 44. Ra8+ {[%clk 0:00:40]}  Kb7 {[%clk 0:01:42]} 45. Qa7# {[%clk 0:00:40]} 1-0


[Site "https://www.chess.com"]

[Event "Titled Tuesday Blitz November 07 Early 2023"]
[White "Nagare Kaivalya Sandip"]
[Black "Becerra, Juan David"]
[WhiteFideId "25957929"]
[BlackFideId "4404998"]
[WhiteElo "2703"]
[BlackElo "2387"]
[Result "1-0"]
[Round "1"]
[TimeControl "180+1"]
[Date "2023.11.07"]
[WhiteClock "0:02:08"]
[BlackClock "0:00:08"]
[Board "125"]

1. e4 {[%clk 0:03:00]}  e6 {[%clk 0:02:59]} 2. d4 {[%clk 0:02:59]}  d5 {[%clk 0:02:57]} 3. Nc3 {[%clk 0:02:55]}  Bb4 {[%clk 0:02:57]} 4. e5 {[%clk 0:02:53]}  c5 {[%clk 0:02:57]} 5. a3 {[%clk 0:02:53]}  Bxc3+ {[%clk 0:02:57]} 6. bxc3 {[%clk 0:02:54]}  Qc7 {[%clk 0:02:57]} 7. Nf3 {[%clk 0:02:54]}  Ne7 {[%clk 0:02:56]} 8. a4 {[%clk 0:02:54]}  Nbc6 {[%clk 0:02:52]} 9. Ba3 {[%clk 0:02:41]}  Qa5 {[%clk 0:02:45]} 10. Qd2 {[%clk 0:02:33]}  cxd4 {[%clk 0:02:31]} 11. cxd4 {[%clk 0:02:32]}  Qxa4 {[%clk 0:02:31]} 12. Bd3 {[%clk 0:02:31]}  Na5 {[%clk 0:00:38]} 13. Bb2 {[%clk 0:02:24]}  Nc4 {[%clk 0:00:24]} 14. Rxa4 {[%clk 0:02:23]}  Nxd2 {[%clk 0:00:25]} 15. Kxd2 {[%clk 0:02:22]}  Bd7 {[%clk 0:00:26]} 16. Ra2 {[%clk 0:02:20]}  O-O {[%clk 0:00:24]} 17. Rha1 {[%clk 0:02:20]}  a6 {[%clk 0:00:23]} 18. Ba3 {[%clk 0:02:20]}  Rfe8 {[%clk 0:00:23]} 19. Bxe7 {[%clk 0:02:19]}  Rxe7 {[%clk 0:00:24]} 20. Rb1 {[%clk 0:02:19]}  Bc6 {[%clk 0:00:24]} 21. Ke3 {[%clk 0:02:18]}  f6 {[%clk 0:00:22]} 22. h4 {[%clk 0:02:17]}  f5 {[%clk 0:00:21]} 23. Nd2 {[%clk 0:02:16]}  h6 {[%clk 0:00:20]} 24. h5 {[%clk 0:02:15]}  Rc7 {[%clk 0:00:20]} 25. Nb3 {[%clk 0:02:15]}  Rac8 {[%clk 0:00:16]} 26. Nc5 {[%clk 0:02:15]}  Re7 {[%clk 0:00:16]} 27. Rb6 {[%clk 0:02:14]}  Kf7 {[%clk 0:00:15]} 28. f4 {[%clk 0:02:12]}  g6 {[%clk 0:00:15]} 29. Be2 {[%clk 0:02:11]}  g5 {[%clk 0:00:14]} 30. g4 {[%clk 0:02:08]}  gxf4+ {[%clk 0:00:13]} 31. Kxf4 {[%clk 0:02:09]}  Rg8 {[%clk 0:00:14]} 32. gxf5 {[%clk 0:02:07]}  exf5 {[%clk 0:00:14]} 33. c4 {[%clk 0:02:07]}  Rg4+ {[%clk 0:00:14]} 34. Bxg4 {[%clk 0:02:07]}  fxg4 {[%clk 0:00:14]} 35. Rxc6 {[%clk 0:02:07]}  bxc6 {[%clk 0:00:13]} 36. cxd5 {[%clk 0:02:08]}  cxd5 {[%clk 0:00:08]} 37. Kxg4 {[%clk 0:02:08]} 1-0


[Site "https://www.chess.com"]